[Event "Early-Titled-Tuesday-Blitz-July-09-2024"]
[Site "Chess.com"]
[Date "2024.07.09"]
[Round "2"]
[White "JordanLoyd2020"]
[Black "Nechitaylo_Nikita"]
[Result "1-0"]
[WhiteElo "2513"]
[BlackElo "2304"]
[TimeControl "180+1"]
[EndTime "8:18:14 PDT"]
[Termination "JordanLoyd2020 won on time"]

1. d4 {[%clk 0:02:57.3]} 1... Nf6 {[%clk 0:03:00]} 2. Bf4 {[%clk 0:02:56.3]}
2... e6 {[%clk 0:02:57.7]} 3. e3 {[%clk 0:02:53.5]} 3... d5 {[%clk 0:02:58]} 4.
Nf3 {[%clk 0:02:50.6]} 4... Bd6 {[%clk 0:02:58.6]} 5. Ne5 {[%clk 0:02:49]} 5...
O-O {[%clk 0:02:56.9]} 6. Nd2 {[%clk 0:02:47.8]} 6... c5 {[%clk 0:02:57.5]} 7.
c3 {[%clk 0:02:47.7]} 7... Qc7 {[%clk 0:02:56.8]} 8. Bd3 {[%clk 0:02:46.2]} 8...
Nbd7 {[%clk 0:02:56.7]} 9. Ndf3 {[%clk 0:02:46.4]} 9... Nb6 {[%clk 0:02:28.7]}
10. h4 {[%clk 0:02:27.9]} 10... Ne4 {[%clk 0:02:27.2]} 11. Ng5 {[%clk
0:01:32.4]} 11... f6 {[%clk 0:01:59.2]} 12. Qh5 {[%clk 0:00:35.6]} 12... g6
{[%clk 0:01:59.1]} 13. Nxg6 {[%clk 0:00:35.3]} 13... hxg6 {[%clk 0:02:00]} 14.
Qxg6+ {[%clk 0:00:32.2]} 14... Qg7 {[%clk 0:02:00.6]} 15. Bxe4 {[%clk
0:00:14.2]} 15... Bxf4 {[%clk 0:01:56.4]} 16. Qh5 {[%clk 0:00:05.7]} 16... dxe4
{[%clk 0:01:52]} 17. Nxe4 {[%clk 0:00:03.8]} 17... Bc7 {[%clk 0:01:40.7]} 18.
dxc5 {[%clk 0:00:03.6]} 18... Nd5 {[%clk 0:01:32.5]} 19. O-O-O {[%clk
0:00:03.7]} 19... Bd7 {[%clk 0:01:21.9]} 20. Rh3 {[%clk 0:00:04.1]} 20... Be8
{[%clk 0:01:19.8]} 21. Qf3 {[%clk 0:00:03.7]} 21... Bg6 {[%clk 0:01:09.6]} 22.
h5 {[%clk 0:00:03.9]} 22... Bxe4 {[%clk 0:01:08.8]} 23. Qxe4 {[%clk 0:00:04.8]}
23... Rae8 {[%clk 0:01:04.4]} 24. f4 {[%clk 0:00:04.3]} 24... f5 {[%clk
0:00:42.9]} 25. Qf3 {[%clk 0:00:04.1]} 25... Kh7 {[%clk 0:00:37.3]} 26. Rg3
{[%clk 0:00:04.3]} 26... Qf7 {[%clk 0:00:34.8]} 27. Rg6 {[%clk 0:00:04.8]} 27...
Rg8 {[%clk 0:00:34.4]} 28. Rh1 {[%clk 0:00:04.8]} 28... e5 {[%clk 0:00:29.1]}
29. g4 {[%clk 0:00:04.2]} 29... exf4 {[%clk 0:00:27]} 30. g5 {[%clk 0:00:04.7]}
30... Rxe3 {[%clk 0:00:19.7]} 31. Rh6+ {[%clk 0:00:04.2]} 31... Kg7 {[%clk
0:00:20.1]} 32. Qg2 {[%clk 0:00:04]} 32... Re6 {[%clk 0:00:13.8]} 33. Rxe6
{[%clk 0:00:03.1]} 33... Qxe6 {[%clk 0:00:14.7]} 34. g6 {[%clk 0:00:03.4]} 34...
Rh8 {[%clk 0:00:11]} 35. h6+ {[%clk 0:00:03.5]} 35... Rxh6 {[%clk 0:00:10.6]}
36. Rxh6 {[%clk 0:00:03.9]} 36... Kxh6 {[%clk 0:00:11.2]} 37. g7 {[%clk
0:00:04.8]} 37... Qe1+ {[%clk 0:00:08.9]} 38. Kc2 {[%clk 0:00:04.9]} 38... Ne3+
{[%clk 0:00:08.2]} 39. Kb3 {[%clk 0:00:05.5]} 39... Nxg2 {[%clk 0:00:07.1]} 40.
g8=Q {[%clk 0:00:06]} 40... Qd1+ {[%clk 0:00:03]} 41. Ka3 {[%clk 0:00:05.9]}
41... Ne3 {[%clk 0:00:02.5]} 42. Qh8+ {[%clk 0:00:06.3]} 42... Kg5 {[%clk
0:00:02.3]} 43. Qg7+ {[%clk 0:00:06.9]} 43... Kh4 {[%clk 0:00:02.8]} 44. Qxc7
{[%clk 0:00:07.8]} 44... Kg3 {[%clk 0:00:02.9]} 45. Qg7+ {[%clk 0:00:07.6]}
45... Kf3 {[%clk 0:00:03.1]} 46. Qxb7+ {[%clk 0:00:08.1]} 46... Kf2 {[%clk
0:00:03.2]} 47. c6 {[%clk 0:00:08.3]} 47... Nc2+ {[%clk 0:00:02.2]} 48. Ka4
{[%clk 0:00:06.1]} 48... Nd4+ {[%clk 0:00:02.5]} 49. Ka5 {[%clk 0:00:06.5]}
49... Ne6 {[%clk 0:00:02]} 50. Qxa7+ {[%clk 0:00:06.6]} 50... Kg2 {[%clk
0:00:01.4]} 51. c7 {[%clk 0:00:07.2]} 51... Qd5+ {[%clk 0:00:01.2]} 52. Kb6
{[%clk 0:00:06.5]} 1-0

[Event "Early-Titled-Tuesday-Blitz-July-09-2024"]
[Site "Chess.com"]
[Date "2024.07.09"]
[Round "2"]
[White "slidingknight2775"]
[Black "ShahMatKanal"]
[Result "1/2-1/2"]
[WhiteElo "2774"]
[BlackElo "2557"]
[TimeControl "180+1"]
[EndTime "8:18:19 PDT"]
[Termination "Game drawn by repetition"]

1. c4 {[%clk 0:03:00.9]} 1... e6 {[%clk 0:02:51.3]} 2. Nf3 {[%clk 0:02:59.5]}
2... Nf6 {[%clk 0:02:33]} 3. e3 {[%clk 0:02:56.2]} 3... b6 {[%clk 0:02:31.5]} 4.
Nc3 {[%clk 0:02:54.8]} 4... Bb7 {[%clk 0:02:29.8]} 5. d4 {[%clk 0:02:54]} 5...
Bb4 {[%clk 0:02:21]} 6. Bd2 {[%clk 0:02:53.4]} 6... O-O {[%clk 0:02:18.4]} 7.
Bd3 {[%clk 0:02:53.2]} 7... Bxc3 {[%clk 0:02:14.2]} 8. Bxc3 {[%clk 0:02:54.1]}
8... Ne4 {[%clk 0:02:14.3]} 9. Bxe4 {[%clk 0:02:53.6]} 9... Bxe4 {[%clk
0:02:15.2]} 10. d5 {[%clk 0:02:54.5]} 10... exd5 {[%clk 0:01:17.5]} 11. cxd5
{[%clk 0:02:52.6]} 11... Re8 {[%clk 0:01:11.2]} 12. Qd4 {[%clk 0:02:44]} 12...
f6 {[%clk 0:01:06]} 13. Nd2 {[%clk 0:02:41.5]} 13... Bg6 {[%clk 0:01:04.4]} 14.
h4 {[%clk 0:02:40.3]} 14... c5 {[%clk 0:00:55.6]} 15. Qg4 {[%clk 0:02:27.7]}
15... Bf7 {[%clk 0:00:33.7]} 16. Qf3 {[%clk 0:02:17]} 16... d6 {[%clk
0:00:31.2]} 17. g4 {[%clk 0:02:04.6]} 17... Nd7 {[%clk 0:00:30.8]} 18. Qg2
{[%clk 0:01:32.5]} 18... Ne5 {[%clk 0:00:30.7]} 19. O-O {[%clk 0:01:30]} 19...
Qd7 {[%clk 0:00:25.5]} 20. g5 {[%clk 0:01:21.4]} 20... fxg5 {[%clk 0:00:23]} 21.
hxg5 {[%clk 0:01:22.3]} 21... Qg4 {[%clk 0:00:16.4]} 22. e4 {[%clk 0:00:54.6]}
22... Qxg2+ {[%clk 0:00:15.8]} 23. Kxg2 {[%clk 0:00:55.5]} 23... b5 {[%clk
0:00:15.3]} 24. f4 {[%clk 0:00:50.3]} 24... Nd3 {[%clk 0:00:12.3]} 25. Rf3
{[%clk 0:00:41.6]} 25... c4 {[%clk 0:00:12.6]} 26. Bd4 {[%clk 0:00:37.5]} 26...
a5 {[%clk 0:00:12]} 27. Rh1 {[%clk 0:00:35.8]} 27... Bxd5 {[%clk 0:00:09.5]} 28.
Rfh3 {[%clk 0:00:25.7]} 28... Rxe4 {[%clk 0:00:07.2]} 29. Nxe4 {[%clk
0:00:26.6]} 29... Bxe4+ {[%clk 0:00:07.8]} 30. Kg3 {[%clk 0:00:23.8]} 30... Bxh1
{[%clk 0:00:07.6]} 31. Rxh1 {[%clk 0:00:24.7]} 31... Re8 {[%clk 0:00:07]} 32.
Kf3 {[%clk 0:00:24.2]} 32... b4 {[%clk 0:00:05.3]} 33. f5 {[%clk 0:00:21.7]}
33... d5 {[%clk 0:00:05.3]} 34. f6 {[%clk 0:00:13.4]} 34... gxf6 {[%clk
0:00:06.2]} 35. gxf6 {[%clk 0:00:13.9]} 35... Ne5+ {[%clk 0:00:06.6]} 36. Kg3
{[%clk 0:00:09.2]} 36... Ng6 {[%clk 0:00:06.4]} 37. Rf1 {[%clk 0:00:07.4]} 37...
Kf7 {[%clk 0:00:06.4]} 38. Rf5 {[%clk 0:00:08.1]} 38... Rd8 {[%clk 0:00:04.8]}
39. Rh5 {[%clk 0:00:05.6]} 39... Kg8 {[%clk 0:00:04.3]} 40. Rf5 {[%clk
0:00:04.8]} 40... Rd7 {[%clk 0:00:04.7]} 41. f7+ {[%clk 0:00:04]} 41... Rxf7
{[%clk 0:00:04.1]} 42. Rxd5 {[%clk 0:00:04.7]} 42... a4 {[%clk 0:00:02.3]} 43.
Rc5 {[%clk 0:00:04.2]} 43... c3 {[%clk 0:00:02.4]} 44. bxc3 {[%clk 0:00:04.3]}
44... bxc3 {[%clk 0:00:03.3]} 45. Bxc3 {[%clk 0:00:05.2]} 45... Ra7 {[%clk
0:00:02.8]} 46. a3 {[%clk 0:00:03.7]} 46... Kf7 {[%clk 0:00:03.1]} 47. Bb4
{[%clk 0:00:04]} 47... Ke6 {[%clk 0:00:03.4]} 48. Rh5 {[%clk 0:00:04.3]} 48...
Ne5 {[%clk 0:00:03.1]} 49. Bc3 {[%clk 0:00:03.9]} 49... Nd3 {[%clk 0:00:03]} 50.
Rh6+ {[%clk 0:00:02.2]} 50... Kd5 {[%clk 0:00:03.1]} 51. Rh4 {[%clk 0:00:02.3]}
51... Nc5 {[%clk 0:00:02.5]} 52. Rd4+ {[%clk 0:00:02.2]} 52... Kc6 {[%clk
0:00:02.3]} 53. Rh4 {[%clk 0:00:03.1]} 53... Kb5 {[%clk 0:00:02.3]} 54. Bb4
{[%clk 0:00:03.6]} 54... Nd3 {[%clk 0:00:02.1]} 55. Bc3 {[%clk 0:00:03.4]} 55...
Nc5 {[%clk 0:00:02.4]} 56. Bb4 {[%clk 0:00:03.4]} 56... Nd3 {[%clk 0:00:02.7]}
57. Bc3 {[%clk 0:00:04]} 57... Nc5 {[%clk 0:00:03.1]} 1/2-1/2

[Event "Early-Titled-Tuesday-Blitz-July-09-2024"]
[Site "Chess.com"]
[Date "2024.07.09"]
[Round "2"]
[White "atbenina64"]
[Black "SVijayalakshmi"]
[Result "1-0"]
[WhiteElo "2792"]
[BlackElo "2552"]
[TimeControl "180+1"]
[EndTime "8:18:20 PDT"]
[Termination "atbenina64 won by resignation"]

1. c4 {[%clk 0:03:00]} 1... Nf6 {[%clk 0:02:56.6]} 2. Nc3 {[%clk 0:02:59.5]}
2... e6 {[%clk 0:02:53.4]} 3. e4 {[%clk 0:02:59.4]} 3... d6 {[%clk 0:02:51.8]}
4. d4 {[%clk 0:02:59.2]} 4... Nbd7 {[%clk 0:02:48.8]} 5. f4 {[%clk 0:02:53.5]}
5... e5 {[%clk 0:02:39.5]} 6. Nf3 {[%clk 0:02:52.1]} 6... c5 {[%clk 0:02:24]} 7.
dxe5 {[%clk 0:02:46.5]} 7... dxe5 {[%clk 0:02:23.2]} 8. fxe5 {[%clk 0:02:45.8]}
8... Ng4 {[%clk 0:02:21.6]} 9. e6 {[%clk 0:02:38.4]} 9... fxe6 {[%clk 0:02:17]}
10. Ng5 {[%clk 0:02:32.4]} 10... Nde5 {[%clk 0:01:51.4]} 11. Qxd8+ {[%clk
0:02:31.7]} 11... Kxd8 {[%clk 0:01:48.9]} 12. h3 {[%clk 0:02:18.2]} 12... Nh6
{[%clk 0:01:44.9]} 13. Bf4 {[%clk 0:02:16.9]} 13... Nhf7 {[%clk 0:00:56.4]} 14.
O-O-O+ {[%clk 0:02:16.4]} 14... Ke7 {[%clk 0:00:56.4]} 15. Nb5 {[%clk
0:01:50.2]} 15... a6 {[%clk 0:00:45.8]} 16. Nd6 {[%clk 0:01:22.6]} 16... g6
{[%clk 0:00:37.5]} 17. Ngxf7 {[%clk 0:01:08.9]} 17... Nxf7 {[%clk 0:00:36.7]}
18. Nxf7 {[%clk 0:01:03.1]} 18... Kxf7 {[%clk 0:00:36.8]} 19. Be2 {[%clk
0:01:01.4]} 19... Bg7 {[%clk 0:00:32.1]} 20. Rhf1 {[%clk 0:00:57.9]} 20... Ke8
{[%clk 0:00:22.6]} 21. Bg5 {[%clk 0:00:57.2]} 21... Bd7 {[%clk 0:00:19.4]} 22.
Rxd7 {[%clk 0:00:57.2]} 22... Kxd7 {[%clk 0:00:19.1]} 23. Rf7+ {[%clk
0:00:57.9]} 23... Kc6 {[%clk 0:00:16.7]} 24. Rxg7 {[%clk 0:00:58.8]} 24... Raf8
{[%clk 0:00:15.5]} 25. Bf3 {[%clk 0:00:57.8]} 25... e5 {[%clk 0:00:14.8]} 26.
Re7 {[%clk 0:00:57.4]} 26... Re8 {[%clk 0:00:15]} 27. Rf7 {[%clk 0:00:47.9]}
27... Ref8 {[%clk 0:00:15.2]} 28. Rf6+ {[%clk 0:00:46.4]} 28... Rxf6 {[%clk
0:00:15]} 29. Bxf6 {[%clk 0:00:47.3]} 29... Re8 {[%clk 0:00:15.2]} 30. Bg5
{[%clk 0:00:43.2]} 30... Kd6 {[%clk 0:00:15.4]} 31. Be3 {[%clk 0:00:43.5]} 31...
Rc8 {[%clk 0:00:15.3]} 32. Kd2 {[%clk 0:00:43.8]} 32... b6 {[%clk 0:00:14.7]}
33. Kc3 {[%clk 0:00:40.9]} 33... a5 {[%clk 0:00:14.7]} 34. Bd1 {[%clk
0:00:40.4]} 34... Rd8 {[%clk 0:00:13.9]} 35. Kd2 {[%clk 0:00:38.3]} 35... Kc7+
{[%clk 0:00:14]} 36. Ke2 {[%clk 0:00:39]} 36... Kc6 {[%clk 0:00:14.1]} 37. Ke1
{[%clk 0:00:34.7]} 37... Rf8 {[%clk 0:00:13.6]} 38. Bg4 {[%clk 0:00:34.7]} 38...
Kd6 {[%clk 0:00:12.6]} 39. Bf2 {[%clk 0:00:32.1]} 39... Rf4 {[%clk 0:00:11.2]}
40. Bf3 {[%clk 0:00:32.7]} 40... Rf8 {[%clk 0:00:10.9]} 41. Bg3 {[%clk
0:00:33.1]} 41... Ke6 {[%clk 0:00:10.7]} 42. Bh2 {[%clk 0:00:31.4]} 42... Rd8
{[%clk 0:00:10.6]} 43. Ke2 {[%clk 0:00:30.6]} 43... Rd4 {[%clk 0:00:10.6]} 44.
b3 {[%clk 0:00:30.8]} 44... Rd8 {[%clk 0:00:10.9]} 45. Bg4+ {[%clk 0:00:30.5]}
45... Kf6 {[%clk 0:00:10.8]} 46. Bg3 {[%clk 0:00:29.8]} 46... Rd4 {[%clk
0:00:10.8]} 47. Ke3 {[%clk 0:00:29.1]} 47... Rd6 {[%clk 0:00:09.3]} 48. Bh4+
{[%clk 0:00:29.3]} 48... Kf7 {[%clk 0:00:09.7]} 49. a3 {[%clk 0:00:26.1]} 49...
h6 {[%clk 0:00:09.8]} 50. Be1 {[%clk 0:00:25.4]} 50... Kf6 {[%clk 0:00:08.9]}
51. Bc8 {[%clk 0:00:24.9]} 51... Rd4 {[%clk 0:00:08.4]} 52. Bd2 {[%clk
0:00:22.7]} 52... g5 {[%clk 0:00:08]} 53. Bb7 {[%clk 0:00:22]} 53... Ke7 {[%clk
0:00:08.2]} 54. Bd5 {[%clk 0:00:22.3]} 54... Kd6 {[%clk 0:00:07.6]} 55. Ke2
{[%clk 0:00:22.6]} 55... a4 {[%clk 0:00:05.6]} 56. bxa4 {[%clk 0:00:21.8]} 56...
Rxd5 {[%clk 0:00:04.4]} 57. cxd5 {[%clk 0:00:21.6]} 57... c4 {[%clk 0:00:04]}
58. Bb4+ {[%clk 0:00:21.4]} 58... Kd7 {[%clk 0:00:04.5]} 59. Kd2 {[%clk
0:00:22]} 1-0

[Event "Early-Titled-Tuesday-Blitz-July-09-2024"]
[Site "Chess.com"]
[Date "2024.07.09"]
[Round "2"]
[White "FerAsensio2024"]
[Black "Andrey_Klymchuk"]
[Result "1/2-1/2"]
[WhiteElo "2544"]
[BlackElo "2751"]
[TimeControl "180+1"]
[EndTime "8:18:22 PDT"]
[Termination "Game drawn - insufficient material"]

1. d4 {[%clk 0:03:00.9]} 1... Nf6 {[%clk 0:02:59.4]} 2. Nc3 {[%clk 0:03:01.3]}
2... d5 {[%clk 0:02:59]} 3. Bf4 {[%clk 0:03:01.7]} 3... c5 {[%clk 0:02:58.9]} 4.
e4 {[%clk 0:03:01.6]} 4... Nxe4 {[%clk 0:02:58.7]} 5. Nxe4 {[%clk 0:03:01.5]}
5... dxe4 {[%clk 0:02:59.6]} 6. dxc5 {[%clk 0:03:02.1]} 6... Qa5+ {[%clk
0:03:00.1]} 7. c3 {[%clk 0:03:02.2]} 7... Qxc5 {[%clk 0:03:00.6]} 8. Qa4+ {[%clk
0:03:02.1]} 8... Nc6 {[%clk 0:03:01.1]} 9. Qxe4 {[%clk 0:03:02.7]} 9... g6
{[%clk 0:03:01.7]} 10. Nf3 {[%clk 0:02:56.5]} 10... Bg7 {[%clk 0:03:01.7]} 11.
Rd1 {[%clk 0:02:57]} 11... O-O {[%clk 0:03:00.8]} 12. Be3 {[%clk 0:02:53.8]}
12... Qa5 {[%clk 0:03:00.2]} 13. Bc4 {[%clk 0:02:53.5]} 13... Bf5 {[%clk
0:02:54.8]} 14. Qh4 {[%clk 0:02:52.7]} 14... Qc7 {[%clk 0:02:37.7]} 15. O-O
{[%clk 0:02:12.9]} 15... h5 {[%clk 0:02:36]} 16. h3 {[%clk 0:02:00.8]} 16... a6
{[%clk 0:02:30]} 17. Bd3 {[%clk 0:01:29.8]} 17... Bxd3 {[%clk 0:02:25.9]} 18.
Rxd3 {[%clk 0:01:30.7]} 18... Rfd8 {[%clk 0:02:24.7]} 19. Rxd8+ {[%clk
0:01:27.8]} 19... Rxd8 {[%clk 0:02:24.2]} 20. Re1 {[%clk 0:01:28.4]} 20... b5
{[%clk 0:02:21.4]} 21. a3 {[%clk 0:01:19.4]} 21... Rd7 {[%clk 0:02:10.1]} 22.
Bg5 {[%clk 0:01:18]} 22... Qd8 {[%clk 0:01:57.4]} 23. Qe4 {[%clk 0:01:14.1]}
23... Qc7 {[%clk 0:01:38]} 24. a4 {[%clk 0:00:57.1]} 24... e6 {[%clk 0:01:28.2]}
25. axb5 {[%clk 0:00:54.8]} 25... axb5 {[%clk 0:01:29.1]} 26. Ra1 {[%clk
0:00:55.1]} 26... Qb7 {[%clk 0:01:22.5]} 27. Be3 {[%clk 0:00:49.9]} 27... Rd5
{[%clk 0:01:18.4]} 28. g4 {[%clk 0:00:29.9]} 28... hxg4 {[%clk 0:01:17.5]} 29.
hxg4 {[%clk 0:00:30.8]} 29... Ne5 {[%clk 0:01:12.2]} 30. Kg2 {[%clk 0:00:26.6]}
30... Nxf3 {[%clk 0:01:07.8]} 31. Qxf3 {[%clk 0:00:25.4]} 31... Rd7 {[%clk
0:00:56.7]} 32. Ra8+ {[%clk 0:00:20.1]} 32... Kh7 {[%clk 0:00:56.6]} 33. Qxb7
{[%clk 0:00:18.7]} 33... Rxb7 {[%clk 0:00:57.5]} 34. Rc8 {[%clk 0:00:06.2]}
34... f5 {[%clk 0:00:53.8]} 35. gxf5 {[%clk 0:00:06.3]} 35... exf5 {[%clk
0:00:53.4]} 36. Kf3 {[%clk 0:00:05.9]} 36... b4 {[%clk 0:00:53.4]} 37. Bd4
{[%clk 0:00:03.9]} 37... bxc3 {[%clk 0:00:49.8]} 38. bxc3 {[%clk 0:00:03.8]}
38... Bxd4 {[%clk 0:00:48.9]} 39. cxd4 {[%clk 0:00:04.7]} 39... g5 {[%clk
0:00:48]} 40. Rc5 {[%clk 0:00:03.5]} 40... Kg6 {[%clk 0:00:47.4]} 41. Rc6+
{[%clk 0:00:04]} 41... Kh5 {[%clk 0:00:47.4]} 42. Rd6 {[%clk 0:00:04]} 42...
Rb3+ {[%clk 0:00:47.3]} 43. Kg2 {[%clk 0:00:04.5]} 43... Kg4 {[%clk 0:00:47.6]}
44. Re6 {[%clk 0:00:04]} 44... Rd3 {[%clk 0:00:46.2]} 45. Rd6 {[%clk 0:00:03.6]}
45... Kf4 {[%clk 0:00:46.5]} 46. Rd7 {[%clk 0:00:01.8]} 46... g4 {[%clk
0:00:46.5]} 47. Rd8 {[%clk 0:00:02]} 47... Ke4 {[%clk 0:00:43.7]} 48. d5 {[%clk
0:00:01.8]} 48... Rxd5 {[%clk 0:00:43.6]} 49. Re8+ {[%clk 0:00:02.4]} 49... Kf4
{[%clk 0:00:43.9]} 50. Ra8 {[%clk 0:00:03.1]} 50... Rd2 {[%clk 0:00:43.7]} 51.
Ra4+ {[%clk 0:00:03.6]} 51... Kg5 {[%clk 0:00:43.8]} 52. Ra5 {[%clk 0:00:04.1]}
52... Rd4 {[%clk 0:00:42.6]} 53. Kg3 {[%clk 0:00:03.7]} 53... Rf4 {[%clk
0:00:41.6]} 54. Rb5 {[%clk 0:00:02.5]} 54... Rf3+ {[%clk 0:00:41.5]} 55. Kg2
{[%clk 0:00:03.2]} 55... Kh4 {[%clk 0:00:41.2]} 56. Rb8 {[%clk 0:00:03.6]} 56...
Ra3 {[%clk 0:00:39.5]} 57. Rh8+ {[%clk 0:00:03.7]} 57... Kg5 {[%clk 0:00:39.7]}
58. Rg8+ {[%clk 0:00:03.9]} 58... Kf4 {[%clk 0:00:40]} 59. Rb8 {[%clk
0:00:03.6]} 59... Ra5 {[%clk 0:00:38.4]} 60. Rb4+ {[%clk 0:00:03.8]} 60... Kg5
{[%clk 0:00:38.4]} 61. Rb8 {[%clk 0:00:04.4]} 61... f4 {[%clk 0:00:37.6]} 62.
Rg8+ {[%clk 0:00:04.8]} 62... Kh4 {[%clk 0:00:38]} 63. Rh8+ {[%clk 0:00:05]}
63... Rh5 {[%clk 0:00:38.1]} 64. Rg8 {[%clk 0:00:05.9]} 64... Rh6 {[%clk
0:00:36.7]} 65. f3 {[%clk 0:00:03.6]} 65... gxf3+ {[%clk 0:00:27.2]} 66. Kxf3
{[%clk 0:00:04.5]} 66... Rf6 {[%clk 0:00:27.4]} 67. Rg4+ {[%clk 0:00:04.5]}
67... Kh5 {[%clk 0:00:27.8]} 68. Rxf4 {[%clk 0:00:05.4]} 68... Rxf4+ {[%clk
0:00:27.6]} 69. Kxf4 {[%clk 0:00:06.3]} 1/2-1/2

[Event "Early-Titled-Tuesday-Blitz-July-09-2024"]
[Site "Chess.com"]
[Date "2024.07.09"]
[Round "2"]
[White "adreyd"]
[Black "pfalcon1949"]
[Result "1-0"]
[WhiteElo "2424"]
[BlackElo "1883"]
[TimeControl "180+1"]
[EndTime "8:18:23 PDT"]
[Termination "adreyd won by checkmate"]

1. d4 {[%clk 0:03:00.9]} 1... Nf6 {[%clk 0:02:58.6]} 2. Nf3 {[%clk 0:02:59.3]}
2... d5 {[%clk 0:02:58.1]} 3. Bg5 {[%clk 0:02:58.5]} 3... Nbd7 {[%clk
0:02:56.2]} 4. Nbd2 {[%clk 0:02:57.5]} 4... c5 {[%clk 0:02:45.3]} 5. e3 {[%clk
0:02:52.8]} 5... Qb6 {[%clk 0:02:44.7]} 6. Qc1 {[%clk 0:02:37]} 6... e6 {[%clk
0:02:37.5]} 7. c3 {[%clk 0:02:35.1]} 7... Be7 {[%clk 0:02:35.6]} 8. Bd3 {[%clk
0:02:34.1]} 8... Nf8 {[%clk 0:02:30.9]} 9. Ne5 {[%clk 0:02:25.5]} 9... Ng6
{[%clk 0:02:25.4]} 10. f4 {[%clk 0:02:17.8]} 10... O-O {[%clk 0:02:18.6]} 11. h4
{[%clk 0:02:05.5]} 11... h6 {[%clk 0:02:08.6]} 12. Bxf6 {[%clk 0:02:03.6]} 12...
Bxf6 {[%clk 0:02:07.3]} 13. Nxg6 {[%clk 0:02:02.7]} 13... fxg6 {[%clk
0:02:06.6]} 14. Bxg6 {[%clk 0:02:03.6]} 14... cxd4 {[%clk 0:02:06.1]} 15. exd4
{[%clk 0:01:59.6]} 15... e5 {[%clk 0:02:03]} 16. Qc2 {[%clk 0:01:27.1]} 16...
exd4 {[%clk 0:01:54.5]} 17. c4 {[%clk 0:00:53.8]} 17... Bg4 {[%clk 0:01:36.2]}
18. f5 {[%clk 0:00:16.5]} 18... h5 {[%clk 0:01:25.8]} 19. c5 {[%clk 0:00:13.7]}
19... Qc7 {[%clk 0:01:19.2]} 20. O-O {[%clk 0:00:07.6]} 20... d3 {[%clk
0:01:15]} 21. Qxd3 {[%clk 0:00:04.8]} 21... Qxc5+ {[%clk 0:01:14.7]} 22. Kh1
{[%clk 0:00:04.5]} 22... Bxh4 {[%clk 0:01:07.3]} 23. Rac1 {[%clk 0:00:03]} 23...
Qd6 {[%clk 0:01:03.7]} 24. Nc4 {[%clk 0:00:02.1]} 24... Qd8 {[%clk 0:00:54]} 25.
Ne3 {[%clk 0:00:01.9]} 25... Bg3 {[%clk 0:00:49.4]} 26. Qxd5+ {[%clk 0:00:01]}
26... Kh8 {[%clk 0:00:47.9]} 27. Qxd8 {[%clk 0:00:01.1]} 27... Raxd8 {[%clk
0:00:46.5]} 28. Nxg4 {[%clk 0:00:02]} 28... hxg4 {[%clk 0:00:46.4]} 29. Rcd1
{[%clk 0:00:02.5]} 29... Be5 {[%clk 0:00:43.3]} 30. Rxd8 {[%clk 0:00:01.1]}
30... Rxd8 {[%clk 0:00:44.2]} 31. Bh5 {[%clk 0:00:01.6]} 31... g3 {[%clk
0:00:42.8]} 32. Bf3 {[%clk 0:00:02]} 32... b6 {[%clk 0:00:40.5]} 33. Re1 {[%clk
0:00:02.7]} 33... Kg8 {[%clk 0:00:40.5]} 34. Rxe5 {[%clk 0:00:02.7]} 34... Rd2
{[%clk 0:00:39.9]} 35. Bd5+ {[%clk 0:00:02.6]} 35... Kh7 {[%clk 0:00:39.5]} 36.
Bf3 {[%clk 0:00:03.5]} 36... Rxb2 {[%clk 0:00:38.4]} 37. Re1 {[%clk 0:00:03.7]}
37... Rxa2 {[%clk 0:00:37.2]} 38. Be4 {[%clk 0:00:03.8]} 38... Kh6 {[%clk
0:00:36.8]} 39. Kg1 {[%clk 0:00:03.8]} 39... Kg5 {[%clk 0:00:37.2]} 40. Rf1
{[%clk 0:00:03.4]} 40... Kg4 {[%clk 0:00:36.7]} 41. Bf3+ {[%clk 0:00:03.3]}
41... Kg5 {[%clk 0:00:36.7]} 42. Bd5 {[%clk 0:00:03.3]} 42... Rb2 {[%clk
0:00:35.8]} 43. Bc4 {[%clk 0:00:03.3]} 43... a5 {[%clk 0:00:34.9]} 44. Bd3
{[%clk 0:00:03.7]} 44... a4 {[%clk 0:00:34.6]} 45. Rf3 {[%clk 0:00:04]} 45...
Rd2 {[%clk 0:00:32.4]} 46. Rxg3+ {[%clk 0:00:04.2]} 46... Kf4 {[%clk 0:00:32.9]}
47. Rf3+ {[%clk 0:00:04.5]} 47... Ke5 {[%clk 0:00:31.9]} 48. Bc4 {[%clk
0:00:04.6]} 48... Rc2 {[%clk 0:00:29.8]} 49. Be6 {[%clk 0:00:03.9]} 49... b5
{[%clk 0:00:28.8]} 50. Ra3 {[%clk 0:00:04]} 50... Rb2 {[%clk 0:00:27.4]} 51. Bd7
{[%clk 0:00:04]} 51... Kf4 {[%clk 0:00:26.7]} 52. Kh2 {[%clk 0:00:03.1]} 52...
Kg5 {[%clk 0:00:27]} 53. Kh3 {[%clk 0:00:03.1]} 53... Rb3+ {[%clk 0:00:25.4]}
54. Rxb3 {[%clk 0:00:03.4]} 54... axb3 {[%clk 0:00:26.3]} 55. Be6 {[%clk
0:00:03.9]} 55... Kf6 {[%clk 0:00:24.4]} 56. Bxb3 {[%clk 0:00:03.6]} 56... b4
{[%clk 0:00:23.8]} 57. Kg4 {[%clk 0:00:03.5]} 57... g6 {[%clk 0:00:23.4]} 58.
fxg6 {[%clk 0:00:03.4]} 58... Kxg6 {[%clk 0:00:24.3]} 59. Kf4 {[%clk 0:00:04.2]}
59... Kf6 {[%clk 0:00:25.1]} 60. g4 {[%clk 0:00:05]} 60... Kg7 {[%clk
0:00:25.1]} 61. g5 {[%clk 0:00:05.9]} 61... Kg6 {[%clk 0:00:24.6]} 62. Kg4
{[%clk 0:00:06.8]} 62... Kg7 {[%clk 0:00:25.4]} 63. Kf5 {[%clk 0:00:07.7]} 63...
Kf8 {[%clk 0:00:24.7]} 64. g6 {[%clk 0:00:08.6]} 64... Kg7 {[%clk 0:00:25.6]}
65. Kg5 {[%clk 0:00:09]} 65... Kh8 {[%clk 0:00:25.7]} 66. Kf5 {[%clk 0:00:07.5]}
66... Kg7 {[%clk 0:00:26]} 67. Bc2 {[%clk 0:00:05.7]} 67... Kg8 {[%clk
0:00:23.1]} 68. Kg5 {[%clk 0:00:05.8]} 68... Kg7 {[%clk 0:00:23.4]} 69. Bd1
{[%clk 0:00:06]} 69... Kg8 {[%clk 0:00:24.3]} 70. Kh6 {[%clk 0:00:06.5]} 70...
Kh8 {[%clk 0:00:24]} 71. g7+ {[%clk 0:00:06.9]} 71... Kg8 {[%clk 0:00:19.5]} 72.
Bb3# {[%clk 0:00:07.8]} 1-0